[Event "Early-Titled-Tuesday-Blitz-June-18-2024"]
[Site "Chess.com"]
[Date "2024.06.18"]
[Round "6"]
[White "ab-lsv"]
[Black "eltenedor"]
[Result "1-0"]
[WhiteElo "2356"]
[BlackElo "2126"]
[TimeControl "180+1"]
[EndTime "9:08:36 PDT"]
[Termination "ab-lsv won by resignation"]

1. d4 {[%clk 0:02:59.8]} 1... b6 {[%clk 0:02:57.9]} 2. e4 {[%clk 0:02:58.3]}
2... Bb7 {[%clk 0:02:58]} 3. Bd3 {[%clk 0:02:58.2]} 3... e6 {[%clk 0:02:58]} 4.
Nf3 {[%clk 0:02:57.4]} 4... d6 {[%clk 0:02:57.3]} 5. O-O {[%clk 0:02:56.7]} 5...
Nd7 {[%clk 0:02:56.9]} 6. c4 {[%clk 0:02:52.3]} 6... Ne7 {[%clk 0:02:55.6]} 7.
Nc3 {[%clk 0:02:52.6]} 7... g6 {[%clk 0:02:55.4]} 8. b4 {[%clk 0:02:46.2]} 8...
Bg7 {[%clk 0:02:48]} 9. Bb2 {[%clk 0:02:46.2]} 9... c5 {[%clk 0:02:37.6]} 10.
Nb5 {[%clk 0:02:21.9]} 10... Nf6 {[%clk 0:02:35.2]} 11. e5 {[%clk 0:02:07.7]}
11... Bxf3 {[%clk 0:01:41.1]} 12. Qxf3 {[%clk 0:02:07.2]} 12... Nf5 {[%clk
0:01:28.4]} 13. Bxf5 {[%clk 0:02:05]} 13... gxf5 {[%clk 0:01:24.6]} 14. Nxd6+
{[%clk 0:01:46.7]} 14... Kf8 {[%clk 0:01:22.9]} 15. exf6 {[%clk 0:01:42.7]}
15... Bxf6 {[%clk 0:01:22.4]} 16. Rad1 {[%clk 0:01:35.8]} 16... cxb4 {[%clk
0:00:57.6]} 17. Qb7 {[%clk 0:01:06.6]} 17... Be7 {[%clk 0:00:48.4]} 18. d5
{[%clk 0:01:00.4]} 18... Rg8 {[%clk 0:00:47.6]} 19. dxe6 {[%clk 0:00:57.4]}
19... Rb8 {[%clk 0:00:19.2]} 20. Qc6 {[%clk 0:00:56.6]} 20... fxe6 {[%clk
0:00:08.9]} 21. Nxf5 {[%clk 0:00:43.8]} 21... Qc8 {[%clk 0:00:04.5]} 22. Nxe7
{[%clk 0:00:41.9]} 22... Kxe7 {[%clk 0:00:02.9]} 23. Qd6+ {[%clk 0:00:40.9]}
23... Kf7 {[%clk 0:00:01.7]} 24. Qf4+ {[%clk 0:00:38.7]} 24... Ke8 {[%clk
0:00:01.1]} 25. Rfe1 {[%clk 0:00:33.6]} 25... Rb7 {[%clk 0:00:01.4]} 26. Qf6
{[%clk 0:00:30.4]} 26... Rg6 {[%clk 0:00:01.4]} 27. Qh8+ {[%clk 0:00:28.3]} 1-0

[Event "Early-Titled-Tuesday-Blitz-June-18-2024"]
[Site "Chess.com"]
[Date "2024.06.18"]
[Round "6"]
[White "Sanan_Sjugirov"]
[Black "js20000"]
[Result "0-1"]
[WhiteElo "2939"]
[BlackElo "2802"]
[TimeControl "180+1"]
[EndTime "9:08:47 PDT"]
[Termination "js20000 won on time"]

1. d4 {[%clk 0:03:00.9]} 1... d6 {[%clk 0:03:00.1]} 2. e4 {[%clk 0:02:59.8]}
2... Nf6 {[%clk 0:02:59.7]} 3. Nc3 {[%clk 0:02:59.8]} 3... e6 {[%clk 0:02:59.9]}
4. Nf3 {[%clk 0:02:58.6]} 4... Be7 {[%clk 0:02:59.6]} 5. Be2 {[%clk 0:02:57]}
5... a6 {[%clk 0:02:59.5]} 6. a4 {[%clk 0:02:55.6]} 6... b6 {[%clk 0:02:59.7]}
7. O-O {[%clk 0:02:54.6]} 7... Bb7 {[%clk 0:03:00]} 8. d5 {[%clk 0:02:43.5]}
8... e5 {[%clk 0:02:54.4]} 9. Nd2 {[%clk 0:02:38.1]} 9... c6 {[%clk 0:02:53.8]}
10. dxc6 {[%clk 0:02:30.9]} 10... Nxc6 {[%clk 0:02:54.7]} 11. Nc4 {[%clk
0:02:25.9]} 11... Nd4 {[%clk 0:02:54.5]} 12. Bd3 {[%clk 0:02:22.2]} 12... b5
{[%clk 0:02:49.9]} 13. Ne3 {[%clk 0:02:11]} 13... O-O {[%clk 0:02:28.6]} 14.
Ncd5 {[%clk 0:02:07.2]} 14... Ne6 {[%clk 0:02:08.7]} 15. axb5 {[%clk 0:02:03.9]}
15... axb5 {[%clk 0:02:05.5]} 16. Rxa8 {[%clk 0:02:03.2]} 16... Bxa8 {[%clk
0:02:05.8]} 17. Bxb5 {[%clk 0:01:43]} 17... Nxe4 {[%clk 0:02:02.6]} 18. c3
{[%clk 0:01:41]} 18... Nf6 {[%clk 0:01:46.4]} 19. Bc4 {[%clk 0:01:40]} 19...
Nxd5 {[%clk 0:01:41.8]} 20. Bxd5 {[%clk 0:01:39.8]} 20... Bg5 {[%clk 0:01:39.2]}
21. Bxa8 {[%clk 0:01:30.1]} 21... Qxa8 {[%clk 0:01:40.1]} 22. Qd5 {[%clk
0:01:09.2]} 22... Bxe3 {[%clk 0:01:38.2]} 23. Qxa8 {[%clk 0:01:09.2]} 23...
Bxf2+ {[%clk 0:01:38.2]} 24. Kxf2 {[%clk 0:01:07.8]} 24... Rxa8 {[%clk
0:01:39.1]} 25. Rd1 {[%clk 0:01:07.9]} 25... Nc5 {[%clk 0:01:34.6]} 26. Be3
{[%clk 0:01:04.9]} 26... f6 {[%clk 0:01:33.2]} 27. Kf3 {[%clk 0:01:00.4]} 27...
Nb7 {[%clk 0:01:02.8]} 28. Ke4 {[%clk 0:00:52.3]} 28... Kf7 {[%clk 0:00:58.9]}
29. Kd5 {[%clk 0:00:52.1]} 29... Ke7 {[%clk 0:00:58.6]} 30. b4 {[%clk
0:00:35.7]} 30... Kd7 {[%clk 0:00:58.4]} 31. Bb6 {[%clk 0:00:29.5]} 31... Ra6
{[%clk 0:00:54.4]} 32. Ba5 {[%clk 0:00:11]} 32... Rc6 {[%clk 0:00:32.5]} 33. c4
{[%clk 0:00:01.1]} 33... Nxa5 {[%clk 0:00:31.9]} 34. bxa5 {[%clk 0:00:02]} 34...
Rc5+ {[%clk 0:00:32.3]} 0-1

[Event "Early-Titled-Tuesday-Blitz-June-18-2024"]
[Site "Chess.com"]
[Date "2024.06.18"]
[Round "6"]
[White "sokidze"]
[Black "Artyom_ChessMate"]
[Result "1-0"]
[WhiteElo "2777"]
[BlackElo "2547"]
[TimeControl "180+1"]
[EndTime "9:08:48 PDT"]
[Termination "sokidze won by resignation"]

1. d4 {[%clk 0:03:00.9]} 1... d5 {[%clk 0:02:59.4]} 2. Nf3 {[%clk 0:02:59.7]}
2... Nf6 {[%clk 0:02:59.3]} 3. Bf4 {[%clk 0:02:59.5]} 3... c5 {[%clk 0:02:59]}
4. e3 {[%clk 0:02:59.7]} 4... Nc6 {[%clk 0:02:59.7]} 5. Nbd2 {[%clk 0:02:59.7]}
5... Nh5 {[%clk 0:02:58.5]} 6. dxc5 {[%clk 0:02:59]} 6... Nxf4 {[%clk
0:02:58.5]} 7. exf4 {[%clk 0:02:59.6]} 7... Qa5 {[%clk 0:02:59.4]} 8. a3 {[%clk
0:02:45]} 8... Qxc5 {[%clk 0:02:57.1]} 9. c4 {[%clk 0:02:44.7]} 9... g6 {[%clk
0:02:51.6]} 10. b4 {[%clk 0:02:38.7]} 10... Qd6 {[%clk 0:02:50.9]} 11. cxd5
{[%clk 0:02:38.4]} 11... Qxd5 {[%clk 0:02:47.9]} 12. Bc4 {[%clk 0:02:38.2]}
12... Qh5 {[%clk 0:02:47.3]} 13. Qb3 {[%clk 0:02:36]} 13... e6 {[%clk
0:02:44.3]} 14. Ne4 {[%clk 0:02:25]} 14... Be7 {[%clk 0:02:33.4]} 15. O-O {[%clk
0:02:19.4]} 15... O-O {[%clk 0:02:27.2]} 16. Rad1 {[%clk 0:02:16.5]} 16... Qg4
{[%clk 0:02:21.6]} 17. Qe3 {[%clk 0:02:12.8]} 17... Qf5 {[%clk 0:01:13.2]} 18.
Nd6 {[%clk 0:02:01]} 18... Bxd6 {[%clk 0:01:11.1]} 19. Rxd6 {[%clk 0:02:01.4]}
19... Ne7 {[%clk 0:00:58.8]} 20. Rfd1 {[%clk 0:01:53.3]} 20... b6 {[%clk
0:00:52]} 21. Ne5 {[%clk 0:01:49.8]} 21... Nd5 {[%clk 0:00:37.1]} 22. Bxd5
{[%clk 0:01:41.4]} 22... exd5 {[%clk 0:00:38]} 23. R6xd5 {[%clk 0:01:38.4]}
23... Be6 {[%clk 0:00:36.5]} 24. Nxg6 {[%clk 0:01:01.3]} 24... hxg6 {[%clk
0:00:19.4]} 25. Rxf5 {[%clk 0:01:00.9]} 25... Bxf5 {[%clk 0:00:20.3]} 26. h3
{[%clk 0:01:00]} 26... Rfe8 {[%clk 0:00:21.2]} 27. Qd4 {[%clk 0:00:59.7]} 27...
Re4 {[%clk 0:00:19.7]} 28. Qd6 {[%clk 0:00:59.1]} 28... Rae8 {[%clk 0:00:20]}
29. Rd2 {[%clk 0:00:58.1]} 29... Re1+ {[%clk 0:00:19.8]} 30. Kh2 {[%clk
0:00:58.2]} 30... R8e6 {[%clk 0:00:19.7]} 31. Qd8+ {[%clk 0:00:57.6]} 31... Re8
{[%clk 0:00:19.8]} 32. Qf6 {[%clk 0:00:56.4]} 32... R1e6 {[%clk 0:00:19]} 33.
Qh4 {[%clk 0:00:55.6]} 33... Re1 {[%clk 0:00:17.3]} 34. Rd8 {[%clk 0:00:55.3]}
34... Kg7 {[%clk 0:00:16.9]} 35. Rxe8 {[%clk 0:00:55.1]} 35... Rxe8 {[%clk
0:00:17.8]} 36. Qg3 {[%clk 0:00:55]} 36... Re2 {[%clk 0:00:17.6]} 37. Qc3+
{[%clk 0:00:55.3]} 37... Kg8 {[%clk 0:00:18]} 38. Kg3 {[%clk 0:00:51.4]} 38...
Re4 {[%clk 0:00:17.8]} 39. h4 {[%clk 0:00:50.3]} 39... Kh7 {[%clk 0:00:17]} 40.
Qf6 {[%clk 0:00:48.6]} 40... Kg8 {[%clk 0:00:16.4]} 41. h5 {[%clk 0:00:47.8]}
41... Re6 {[%clk 0:00:16.4]} 42. Qd8+ {[%clk 0:00:48.2]} 42... Kg7 {[%clk
0:00:17.1]} 43. h6+ {[%clk 0:00:46.8]} 1-0

[Event "Early-Titled-Tuesday-Blitz-June-18-2024"]
[Site "Chess.com"]
[Date "2024.06.18"]
[Round "6"]
[White "Qvalda"]
[Black "Chessbard1972"]
[Result "0-1"]
[WhiteElo "2443"]
[BlackElo "2250"]
[TimeControl "180+1"]
[EndTime "9:08:48 PDT"]
[Termination "Chessbard1972 won on time"]

1. d4 {[%clk 0:03:00.9]} 1... Nf6 {[%clk 0:02:58.9]} 2. c4 {[%clk 0:03:00.8]}
2... g6 {[%clk 0:02:59.3]} 3. Nf3 {[%clk 0:03:00.5]} 3... Bg7 {[%clk 0:03:00.2]}
4. e3 {[%clk 0:03:00.2]} 4... O-O {[%clk 0:02:59.8]} 5. Be2 {[%clk 0:03:00.7]}
5... d6 {[%clk 0:03:00.3]} 6. O-O {[%clk 0:03:00.6]} 6... Nfd7 {[%clk
0:03:00.6]} 7. Nc3 {[%clk 0:02:59.4]} 7... c5 {[%clk 0:03:00.5]} 8. d5 {[%clk
0:02:43.7]} 8... Nf6 {[%clk 0:02:57.3]} 9. e4 {[%clk 0:02:43.7]} 9... e6 {[%clk
0:02:55.7]} 10. Bg5 {[%clk 0:02:30.4]} 10... h6 {[%clk 0:02:54.7]} 11. Bh4
{[%clk 0:02:29.3]} 11... g5 {[%clk 0:02:52.1]} 12. Bg3 {[%clk 0:02:27.9]} 12...
exd5 {[%clk 0:02:51.7]} 13. exd5 {[%clk 0:02:21.7]} 13... Nh5 {[%clk 0:02:50.9]}
14. Nd2 {[%clk 0:02:15.9]} 14... Nxg3 {[%clk 0:02:50.1]} 15. fxg3 {[%clk
0:02:13.9]} 15... f5 {[%clk 0:02:50.1]} 16. Bh5 {[%clk 0:02:10.5]} 16... Qf6
{[%clk 0:02:42.4]} 17. Nb5 {[%clk 0:01:42.7]} 17... Na6 {[%clk 0:02:34.5]} 18.
g4 {[%clk 0:01:22]} 18... Qxb2 {[%clk 0:02:25.6]} 19. Rb1 {[%clk 0:01:10.5]}
19... Qxa2 {[%clk 0:02:20.5]} 20. Nxd6 {[%clk 0:01:05.3]} 20... b6 {[%clk
0:02:02.1]} 21. Nxf5 {[%clk 0:00:35.1]} 21... Bxf5 {[%clk 0:02:00.3]} 22. gxf5
{[%clk 0:00:36]} 22... Nb4 {[%clk 0:01:54.5]} 23. Kh1 {[%clk 0:00:21.4]} 23...
Qc2 {[%clk 0:01:48.4]} 24. Qe2 {[%clk 0:00:20.8]} 24... Kh8 {[%clk 0:01:36.3]}
25. Rbc1 {[%clk 0:00:15.2]} 25... Qd3 {[%clk 0:01:34.2]} 26. Qxd3 {[%clk
0:00:12]} 26... Nxd3 {[%clk 0:01:33.8]} 27. Rcd1 {[%clk 0:00:10.8]} 27... Bd4
{[%clk 0:01:27.3]} 28. Ne4 {[%clk 0:00:09.8]} 28... Nf4 {[%clk 0:01:25.3]} 29.
Bg4 {[%clk 0:00:02]} 29... Rae8 {[%clk 0:01:19.8]} 30. g3 {[%clk 0:00:01.8]}
30... Rxe4 {[%clk 0:01:14.7]} 31. gxf4 {[%clk 0:00:02.2]} 31... gxf4 {[%clk
0:01:14.5]} 32. Kg2 {[%clk 0:00:01.6]} 32... Be5 {[%clk 0:01:03.3]} 33. Kf3
{[%clk 0:00:01.8]} 33... Re3+ {[%clk 0:01:03.6]} 34. Kf2 {[%clk 0:00:02.4]}
34... Rg8 {[%clk 0:01:03.1]} 35. h3 {[%clk 0:00:02.2]} 35... Bf6 {[%clk
0:01:02.3]} 36. Kg2 {[%clk 0:00:01.1]} 36... h5 {[%clk 0:01:02.2]} 37. Kf2
{[%clk 0:00:01]} 37... hxg4 {[%clk 0:01:01.5]} 38. hxg4 {[%clk 0:00:01.9]} 38...
Rxg4 {[%clk 0:01:01]} 39. Rh1+ {[%clk 0:00:01.9]} 39... Kg7 {[%clk 0:01:01.5]}
40. d6 {[%clk 0:00:02.2]} 40... Bh4+ {[%clk 0:00:50.6]} 41. Rxh4 {[%clk
0:00:01.8]} 41... Rxh4 {[%clk 0:00:50.4]} 42. d7 {[%clk 0:00:02.5]} 42... Rh2+
{[%clk 0:00:48.7]} 43. Kf1 {[%clk 0:00:02.1]} 43... Rh1+ {[%clk 0:00:48.1]} 0-1

[Event "Early-Titled-Tuesday-Blitz-June-18-2024"]
[Site "Chess.com"]
[Date "2024.06.18"]
[Round "6"]
[White "azikom"]
[Black "DvaHrasta"]
[Result "1-0"]
[WhiteElo "2698"]
[BlackElo "2512"]
[TimeControl "180+1"]
[EndTime "9:08:49 PDT"]
[Termination "azikom won on time"]

1. e4 {[%clk 0:03:00.6]} 1... c6 {[%clk 0:02:59.8]} 2. Nc3 {[%clk 0:03:01]} 2...
d5 {[%clk 0:02:59.8]} 3. Nf3 {[%clk 0:03:01.7]} 3... Nf6 {[%clk 0:02:59.7]} 4.
e5 {[%clk 0:03:00.2]} 4... Ne4 {[%clk 0:02:59.7]} 5. d4 {[%clk 0:03:00.8]} 5...
Bg4 {[%clk 0:02:58.5]} 6. Bd3 {[%clk 0:02:59.4]} 6... Nxc3 {[%clk 0:02:57.8]} 7.
bxc3 {[%clk 0:03:00.3]} 7... e6 {[%clk 0:02:57.8]} 8. h3 {[%clk 0:03:00.4]} 8...
Bxf3 {[%clk 0:02:57.9]} 9. Qxf3 {[%clk 0:03:00.1]} 9... b5 {[%clk 0:02:56.8]}
10. h4 {[%clk 0:02:59.7]} 10... a5 {[%clk 0:02:52.5]} 11. h5 {[%clk 0:02:59.8]}
11... h6 {[%clk 0:02:51.5]} 12. Rh3 {[%clk 0:02:59.5]} 12... a4 {[%clk
0:02:48.5]} 13. Qg4 {[%clk 0:02:55.8]} 13... Kd7 {[%clk 0:02:22.5]} 14. f4
{[%clk 0:02:54.7]} 14... Kc7 {[%clk 0:02:14.4]} 15. Rb1 {[%clk 0:02:53.9]} 15...
Nd7 {[%clk 0:02:03.7]} 16. f5 {[%clk 0:02:53.5]} 16... Qe7 {[%clk 0:01:48.4]}
17. Rf3 {[%clk 0:02:52.4]} 17... Nb6 {[%clk 0:01:33.8]} 18. fxe6 {[%clk
0:02:51.8]} 18... Qxe6 {[%clk 0:01:15.1]} 19. Bf5 {[%clk 0:02:38.6]} 19... Qe7
{[%clk 0:01:04.9]} 20. Kf1 {[%clk 0:02:38.5]} 20... Nc4 {[%clk 0:01:02.8]} 21.
Kg1 {[%clk 0:02:38.2]} 21... Kb6 {[%clk 0:00:59]} 22. Bf4 {[%clk 0:02:36.6]}
22... Qa3 {[%clk 0:00:52.2]} 23. e6 {[%clk 0:02:15.3]} 23... fxe6 {[%clk
0:00:49.9]} 24. Bxe6 {[%clk 0:02:16.2]} 24... Bd6 {[%clk 0:00:46.9]} 25. Bxd6
{[%clk 0:02:12.9]} 25... Qxd6 {[%clk 0:00:46.7]} 26. Rf7 {[%clk 0:02:07.2]}
26... Ne3 {[%clk 0:00:26.5]} 27. Qh3 {[%clk 0:02:04.9]} 27... Rhe8 {[%clk
0:00:21.7]} 28. Bd7 {[%clk 0:01:52.1]} 28... Re7 {[%clk 0:00:16.3]} 29. Rxe7
{[%clk 0:01:50.8]} 29... Qxe7 {[%clk 0:00:16.6]} 30. Re1 {[%clk 0:01:50.5]}
30... Rd8 {[%clk 0:00:16.3]} 31. Bxc6 {[%clk 0:01:50]} 31... Kxc6 {[%clk
0:00:16]} 32. Rxe3 {[%clk 0:01:50.3]} 32... Qg5 {[%clk 0:00:09]} 33. Rg3 {[%clk
0:01:50.3]} 33... Qc1+ {[%clk 0:00:07.2]} 34. Kh2 {[%clk 0:01:50.3]} 34... Qf4
{[%clk 0:00:05.3]} 35. Qe6+ {[%clk 0:01:44.1]} 35... Rd6 {[%clk 0:00:04.3]} 36.
Qe8+ {[%clk 0:01:34]} 36... Kb6 {[%clk 0:00:03.8]} 37. Qe7 {[%clk 0:01:20.5]}
37... Rc6 {[%clk 0:00:01.4]} 38. Qxg7 {[%clk 0:01:13.9]} 38... Rxc3 {[%clk
0:00:01]} 39. Qg4 {[%clk 0:00:45.6]} 1-0

[Event "Early-Titled-Tuesday-Blitz-June-18-2024"]
[Site "Chess.com"]
[Date "2024.06.18"]
[Round "6"]
[White "LoonsDeKoeben"]
[Black "HATilay"]
[Result "0-1"]
[WhiteElo "2393"]
[BlackElo "2637"]
[TimeControl "180+1"]
[EndTime "9:08:51 PDT"]
[Termination "HATilay won by resignation"]

1. Nf3 {[%clk 0:02:57.2]} 1... Nf6 {[%clk 0:02:59.2]} 2. c4 {[%clk 0:02:57]}
2... e6 {[%clk 0:02:57.7]} 3. b3 {[%clk 0:02:55.2]} 3... d5 {[%clk 0:02:57.6]}
4. Bb2 {[%clk 0:02:55]} 4... c5 {[%clk 0:02:58.3]} 5. e3 {[%clk 0:02:55.1]} 5...
Nc6 {[%clk 0:02:58]} 6. g3 {[%clk 0:02:26.7]} 6... Be7 {[%clk 0:02:34.8]} 7. Bg2
{[%clk 0:02:26.4]} 7... dxc4 {[%clk 0:02:35.2]} 8. bxc4 {[%clk 0:02:25.9]} 8...
O-O {[%clk 0:02:33.9]} 9. O-O {[%clk 0:02:24.9]} 9... Qc7 {[%clk 0:02:34.5]} 10.
Nc3 {[%clk 0:02:22.7]} 10... b6 {[%clk 0:02:34.5]} 11. Nb5 {[%clk 0:02:21.1]}
11... Qb8 {[%clk 0:02:08.4]} 12. Ne5 {[%clk 0:02:08.8]} 12... Nxe5 {[%clk
0:02:06.8]} 13. Bxe5 {[%clk 0:02:09.7]} 13... Qxe5 {[%clk 0:02:06.6]} 14. Bxa8
{[%clk 0:02:09.9]} 14... Qg5 {[%clk 0:01:38]} 15. Bg2 {[%clk 0:01:59.3]} 15...
e5 {[%clk 0:01:38.3]} 16. Nxa7 {[%clk 0:01:36.2]} 16... Bg4 {[%clk 0:01:37.4]}
17. f3 {[%clk 0:01:34.2]} 17... Be6 {[%clk 0:01:37.9]} 18. Nc6 {[%clk
0:01:32.6]} 18... Bd6 {[%clk 0:01:35.2]} 19. f4 {[%clk 0:01:26.3]} 19... exf4
{[%clk 0:01:34]} 20. exf4 {[%clk 0:01:25.5]} 20... Qh6 {[%clk 0:01:29.9]} 21.
Qc2 {[%clk 0:00:50.2]} 21... Bh3 {[%clk 0:01:09.3]} 22. d3 {[%clk 0:00:37.7]}
22... Ng4 {[%clk 0:01:08.3]} 23. Bxh3 {[%clk 0:00:36.2]} 23... Qxh3 {[%clk
0:01:08.2]} 24. Qe2 {[%clk 0:00:26.7]} 24... Rc8 {[%clk 0:00:50.3]} 25. Rfe1
{[%clk 0:00:22.7]} 25... Rxc6 {[%clk 0:00:45.4]} 26. Qe8+ {[%clk 0:00:16.9]}
26... Bf8 {[%clk 0:00:45.8]} 27. Re2 {[%clk 0:00:15.4]} 27... Re6 {[%clk
0:00:45.2]} 28. Qxe6 {[%clk 0:00:04.7]} 28... fxe6 {[%clk 0:00:44.4]} 29. a4
{[%clk 0:00:05.6]} 29... g6 {[%clk 0:00:42.1]} 30. a5 {[%clk 0:00:05.9]} 30...
bxa5 {[%clk 0:00:43]} 31. Rxa5 {[%clk 0:00:06]} 31... h5 {[%clk 0:00:34.2]} 32.
Rg2 {[%clk 0:00:03.3]} 32... Bg7 {[%clk 0:00:33.9]} 33. Raa2 {[%clk 0:00:02.8]}
33... Bd4+ {[%clk 0:00:34.1]} 34. Kh1 {[%clk 0:00:02.8]} 34... Ne3 {[%clk
0:00:34.7]} 35. Rg1 {[%clk 0:00:02.5]} 35... Qg4 {[%clk 0:00:33.9]} 36. Raa1
{[%clk 0:00:01.1]} 36... Qf3+ {[%clk 0:00:34.1]} 0-1

[Event "Early-Titled-Tuesday-Blitz-June-18-2024"]
[Site "Chess.com"]
[Date "2024.06.18"]
[Round "6"]
[White "falzehope0"]
[Black "elizabethcastaneda"]
[Result "1/2-1/2"]
[WhiteElo "2437"]
[BlackElo "2177"]
[TimeControl "180+1"]
[EndTime "9:08:54 PDT"]
[Termination "Game drawn by repetition"]

1. d4 {[%clk 0:03:00.9]} 1... Nf6 {[%clk 0:02:59.5]} 2. e3 {[%clk 0:03:01.8]}
2... g6 {[%clk 0:02:55.4]} 3. Bd3 {[%clk 0:03:01.8]} 3... Bg7 {[%clk 0:02:55.1]}
4. f4 {[%clk 0:03:02.4]} 4... O-O {[%clk 0:02:53.3]} 5. Nf3 {[%clk 0:03:02.2]}
5... d6 {[%clk 0:02:52.1]} 6. O-O {[%clk 0:03:00.4]} 6... c5 {[%clk 0:02:51.8]}
7. c3 {[%clk 0:02:57.4]} 7... Nc6 {[%clk 0:02:48.7]} 8. Bc2 {[%clk 0:02:56.7]}
8... Bg4 {[%clk 0:02:42.4]} 9. d5 {[%clk 0:02:53.6]} 9... Na5 {[%clk 0:02:27.7]}
10. h3 {[%clk 0:02:50.3]} 10... Bxf3 {[%clk 0:02:23.8]} 11. Qxf3 {[%clk
0:02:51.2]} 11... e6 {[%clk 0:02:08.7]} 12. e4 {[%clk 0:02:49.3]} 12... exd5
{[%clk 0:02:05.7]} 13. exd5 {[%clk 0:02:48.5]} 13... b5 {[%clk 0:02:05.4]} 14.
f5 {[%clk 0:02:47.3]} 14... Nd7 {[%clk 0:02:00.6]} 15. Bf4 {[%clk 0:02:38.4]}
15... Nc4 {[%clk 0:01:57.6]} 16. Na3 {[%clk 0:02:31.1]} 16... Nxa3 {[%clk
0:01:44.7]} 17. bxa3 {[%clk 0:02:30.4]} 17... Ne5 {[%clk 0:01:44.7]} 18. Qg3
{[%clk 0:02:28.6]} 18... Bf6 {[%clk 0:01:09.5]} 19. fxg6 {[%clk 0:02:21.2]}
19... fxg6 {[%clk 0:01:07.6]} 20. Bh6 {[%clk 0:02:18.5]} 20... Bg7 {[%clk
0:01:03]} 21. Rxf8+ {[%clk 0:02:10.4]} 21... Qxf8 {[%clk 0:01:00.8]} 22. Rf1
{[%clk 0:02:07.2]} 22... Qe7 {[%clk 0:01:00.8]} 23. Bg5 {[%clk 0:02:06.3]} 23...
Qd7 {[%clk 0:01:00.8]} 24. Bf6 {[%clk 0:01:58.2]} 24... Rf8 {[%clk 0:00:54.1]}
25. Bxg7 {[%clk 0:01:57]} 25... Rxf1+ {[%clk 0:00:53.8]} 26. Kxf1 {[%clk
0:01:57.9]} 26... Kxg7 {[%clk 0:00:52.9]} 27. Kg1 {[%clk 0:01:52.4]} 27... Qf7
{[%clk 0:00:50.9]} 28. Be4 {[%clk 0:01:50.7]} 28... Nc4 {[%clk 0:00:41.4]} 29.
h4 {[%clk 0:01:41.5]} 29... Qe7 {[%clk 0:00:39.5]} 30. Qg4 {[%clk 0:01:19.8]}
30... Ne3 {[%clk 0:00:34]} 31. Qf4 {[%clk 0:01:12]} 31... Nc4 {[%clk 0:00:32.8]}
32. h5 {[%clk 0:01:11.3]} 32... Qf6 {[%clk 0:00:33]} 33. h6+ {[%clk 0:00:53.7]}
33... Kf7 {[%clk 0:00:31.4]} 34. Qg4 {[%clk 0:00:53.5]} 34... Ne5 {[%clk
0:00:30.4]} 35. Qc8 {[%clk 0:00:49]} 35... Qg5 {[%clk 0:00:30.3]} 36. Qc7+
{[%clk 0:00:46.8]} 36... Ke8 {[%clk 0:00:29.5]} 37. Qb8+ {[%clk 0:00:22.9]}
37... Ke7 {[%clk 0:00:28.7]} 38. Qc7+ {[%clk 0:00:19.1]} 38... Nd7 {[%clk
0:00:29]} 39. Bf3 {[%clk 0:00:19.1]} 39... Qc1+ {[%clk 0:00:28]} 40. Kf2 {[%clk
0:00:18.5]} 40... Qd2+ {[%clk 0:00:27.9]} 41. Kf1 {[%clk 0:00:18.6]} 41... Qc1+
{[%clk 0:00:28.1]} 42. Kf2 {[%clk 0:00:18.9]} 42... Qd2+ {[%clk 0:00:28.5]} 43.
Kf1 {[%clk 0:00:19.3]} 43... Qc1+ {[%clk 0:00:28.8]} 44. Kf2 {[%clk 0:00:19.7]}
1/2-1/2

[Event "Early-Titled-Tuesday-Blitz-June-18-2024"]
[Site "Chess.com"]
[Date "2024.06.18"]
[Round "6"]
[White "Dreamer_01"]
[Black "Chernov_Alexander_A"]
[Result "0-1"]
[WhiteElo "2366"]
[BlackElo "2296"]
[TimeControl "180+1"]
[EndTime "9:08:54 PDT"]
[Termination "Chernov_Alexander_A won on time"]

1. e4 {[%clk 0:03:00.9]} 1... e5 {[%clk 0:02:59.2]} 2. Nf3 {[%clk 0:03:00.7]}
2... Nc6 {[%clk 0:02:59.4]} 3. Bb5 {[%clk 0:03:00]} 3... Bc5 {[%clk 0:02:59]} 4.
O-O {[%clk 0:02:59.8]} 4... Nd4 {[%clk 0:02:58.7]} 5. Nxd4 {[%clk 0:02:59.1]}
5... Bxd4 {[%clk 0:02:58.9]} 6. c3 {[%clk 0:02:59.1]} 6... Bb6 {[%clk
0:02:58.9]} 7. d4 {[%clk 0:02:58.5]} 7... c6 {[%clk 0:02:58.8]} 8. Ba4 {[%clk
0:02:52.9]} 8... d6 {[%clk 0:02:58.8]} 9. Kh1 {[%clk 0:02:47.3]} 9... Nf6 {[%clk
0:02:56.9]} 10. Bg5 {[%clk 0:02:42.5]} 10... h6 {[%clk 0:02:55.6]} 11. Bh4
{[%clk 0:02:23.7]} 11... g5 {[%clk 0:02:54.2]} 12. Bg3 {[%clk 0:02:23.9]} 12...
Qe7 {[%clk 0:02:53.3]} 13. dxe5 {[%clk 0:02:18.5]} 13... dxe5 {[%clk 0:02:52.8]}
14. Nd2 {[%clk 0:02:19.2]} 14... h5 {[%clk 0:02:52.1]} 15. Nc4 {[%clk
0:02:15.1]} 15... Bc7 {[%clk 0:02:51.3]} 16. h4 {[%clk 0:01:45]} 16... Ng4
{[%clk 0:02:49.7]} 17. Bc2 {[%clk 0:01:21.3]} 17... gxh4 {[%clk 0:02:48]} 18.
Bh2 {[%clk 0:01:21.9]} 18... Be6 {[%clk 0:02:25.4]} 19. b3 {[%clk 0:01:16.9]}
19... Rd8 {[%clk 0:02:10.8]} 20. Qe2 {[%clk 0:01:15]} 20... Nxh2 {[%clk
0:02:00.1]} 21. Kxh2 {[%clk 0:01:11.5]} 21... Qg5 {[%clk 0:01:59.9]} 22. Rad1
{[%clk 0:00:55.9]} 22... Rg8 {[%clk 0:01:51.6]} 23. Rg1 {[%clk 0:00:48.5]} 23...
Qf4+ {[%clk 0:01:34.6]} 24. Kh1 {[%clk 0:00:47.4]} 24... Ke7 {[%clk 0:01:16.2]}
25. Ne3 {[%clk 0:00:35]} 25... Bg4 {[%clk 0:01:08.5]} 26. Nxg4 {[%clk
0:00:26.9]} 26... Qxg4 {[%clk 0:00:59.4]} 27. Qc4 {[%clk 0:00:23.4]} 27... h3
{[%clk 0:00:38.7]} 28. Qb4+ {[%clk 0:00:16.2]} 28... Kf6 {[%clk 0:00:24.1]} 29.
Rxd8 {[%clk 0:00:01.4]} 29... hxg2+ {[%clk 0:00:22.6]} 0-1